fUST/lending_fUST_20250523
["ID","MTS","AMOUNT","RATE_DAILY","PERIOD"]
[362012976,1747936237692,-430.0,0.00021917,2]
[362012977,1747936237701,-450.0,0.00021917,2]
[362012978,1747936237711,-3155.21,0.00021917,2]
[362012979,1747936237722,-450.0,0.00021917,2]
[362012980,1747936237733,-450.0,0.00021917,2]
[362012981,1747936237742,-501.44848117,0.00021917,2]
[362012982,1747936237752,-907.57,0.00021917,2]
[362012983,1747936237763,-450.0,0.00021917,2]
[362012984,1747936237774,-2939.85,0.00021917,2]
[362012985,1747936237783,-1031.52,0.00021917,2]
[362012986,1747936237794,-430.0,0.00021917,2]
[362012987,1747936237803,-9885.45,0.00021917,2]
[362012988,1747936237812,-400.0,0.00021917,2]
[362012989,1747936237822,-450.0,0.00021917,2]
[362012990,1747936237831,-6250.99,0.00021917,2]
[362012991,1747936237841,-450.0,0.00021917,2]
[362012992,1747936237853,-852.97,0.00021917,2]
[362012993,1747936237864,-450.0,0.00021917,2]
[362012994,1747936237874,-247.00144133,0.00021917,2]
[362012995,1747936237885,-441.65195025,0.00021917,2]
[362012996,1747936237896,-1765.49,0.00021917,2]
[362012997,1747936237906,-430.0,0.00021917,2]
[362012998,1747936237915,-430.0,0.00021917,2]
[362012999,1747936237924,-430.0,0.00021917,2]
[362013000,1747936237934,-430.0,0.00021917,2]
[362013001,1747936237944,-450.0,0.00021917,2]
[362013002,1747936237954,-430.0,0.00021917,2]
[362013003,1747936237964,-1304.5,0.00021917,2]
[362013004,1747936237975,-430.0,0.00021917,2]
[362013005,1747936237985,-430.0,0.00021917,2]
[362013006,1747936237996,-430.0,0.00021917,2]
[362013007,1747936238005,-891.86,0.00021917,2]
[362013008,1747936238015,-430.0,0.00021917,2]
[362013009,1747936238024,-430.0,0.00021917,2]
[362013010,1747936238035,-430.0,0.00021917,2]
[362013011,1747936238044,-450.0,0.00021917,2]
[362013012,1747936238053,-1494.69,0.00021917,2]
[362013013,1747936238063,-430.0,0.00021917,2]
[362013014,1747936238072,-430.0,0.00021917,2]
[362013015,1747936238082,-430.0,0.00021917,2]
[362013016,1747936238093,-2300.04,0.00021917,2]
[362013017,1747936238102,-4451.21,0.00021917,2]
[362013018,1747936238111,-450.0,0.00021917,2]
[362013019,1747936238121,-1539.59,0.00021917,2]
[362013020,1747936238130,-430.0,0.00021917,2]
[362013021,1747936238139,-430.0,0.00021917,2]
[362013022,1747936238150,-430.0,0.00021917,2]
[362013023,1747936238160,-732.98,0.00021917,2]
[362013024,1747936238169,-458.83961208,0.00021917,2]
[362013025,1747936238178,-430.0,0.00021917,2]
[362013026,1747936238188,-430.0,0.00021917,2]
[362013027,1747936238198,-455.35967499,0.00021917,2]
[362013028,1747936238207,-430.0,0.00021917,2]
[362013029,1747936238217,-430.0,0.00021917,2]
[362013030,1747936238226,-430.0,0.00021917,2]
[362013031,1747936238236,-2029.47,0.00021917,2]
[362013032,1747936238245,-430.0,0.00021917,2]
[362013033,1747936238254,-430.0,0.00021917,2]
[362013034,1747936238264,-430.0,0.00021917,2]
[362013035,1747936238273,-430.0,0.00021917,2]
[362013036,1747936238283,-430.0,0.00021917,2]
[362013037,1747936238292,-430.0,0.00021917,2]
[362013038,1747936238302,-430.0,0.00021917,2]
[362013040,1747936238311,-430.0,0.00021917,2]
[362013042,1747936238320,-400.0,0.00021917,2]
[362013043,1747936238329,-430.0,0.00021917,2]
[362013045,1747936238339,-430.0,0.00021917,2]
[362013047,1747936238348,-918.42,0.00021917,2]
[362013049,1747936238358,-478.81,0.00021917,2]
[362013051,1747936238368,-310.0,0.00021917,2]
[362013054,1747936238378,-450.0,0.00021917,2]
[362013055,1747936238387,-450.0,0.00021917,2]
[362013057,1747936238396,-430.0,0.00021917,2]
[362013059,1747936238406,-528.35417367,0.00021917,2]
[362013061,1747936238415,-430.0,0.00021917,2]
[362013063,1747936238424,-2061.89,0.00021917,2]
[362013065,1747936238433,-430.0,0.00021917,2]
[362013067,1747936238442,-430.0,0.00021917,2]
[362013069,1747936238451,-430.0,0.00021917,2]
[362013071,1747936238460,-636.64,0.00021917,2]
[362013073,1747936238469,-965.88,0.00021917,2]
[362013075,1747936238478,-968.36,0.00021917,2]
[362013077,1747936238488,-805.95,0.00021917,2]
[362013079,1747936238498,-931.81,0.00021917,2]
[362013081,1747936238507,-430.0,0.00021917,2]
[362013083,1747936238517,-450.0,0.00021917,2]
[362013085,1747936238527,-450.0,0.00021917,2]
[362013087,1747936238536,-430.0,0.00021917,2]
[362013089,1747936238547,-450.0,0.00021917,2]
[362013091,1747936238559,-908.84,0.00021917,2]
[362013093,1747936238569,-430.0,0.00021917,2]
[362013095,1747936238579,-430.0,0.00021917,2]
[362013097,1747936238589,-400.0,0.00021917,2]
[362013099,1747936238600,-430.0,0.00021917,2]
[362013101,1747936238609,-2751.49,0.00021917,2]
[362013103,1747936238619,-430.0,0.00021917,2]
[362013105,1747936238629,-468.07271145,0.00021917,2]
[362013107,1747936238639,-430.0,0.00021917,2]
[362013109,1747936238648,-1467.3,0.00021917,2]
[362013111,1747936238658,-430.0,0.00021917,2]
[362013113,1747936238667,-430.0,0.00021917,2]
[362013115,1747936238677,-450.0,0.00021917,2]
[362013117,1747936238686,-430.0,0.00021917,2]
[362013119,1747936238695,-430.0,0.00021917,2]
[362013121,1747936238705,-450.0,0.00021917,2]
[362013123,1747936238715,-430.0,0.00021917,2]
[362013125,1747936238725,-430.0,0.00021917,2]
[362013127,1747936238734,-430.0,0.00021917,2]
[362013129,1747936238744,-430.0,0.00021917,2]
[362013131,1747936238754,-430.0,0.00021917,2]
[362013133,1747936238763,-430.0,0.00021917,2]
[362013135,1747936238772,-430.0,0.00021917,2]
[362013136,1747936238782,-450.0,0.00021917,2]
[362013138,1747936238793,-787.81,0.00021917,2]
[362013140,1747936238803,-793.23,0.00021917,2]
[362013142,1747936238813,-430.0,0.00021917,2]
[362013144,1747936238823,-430.0,0.00021917,2]
[362013146,1747936238832,-544.08010736,0.00021917,2]
[362013148,1747936238842,-450.0,0.00021917,2]
[362013150,1747936238851,-250.0,0.00021917,2]
[362013152,1747936238861,-370.0,0.00021917,2]
[362013154,1747936238871,-430.0,0.00021917,2]
[362013156,1747936238881,-526.57333338,0.00021917,2]
[362013158,1747936238891,-430.0,0.00021917,2]
[362013160,1747936238900,-1052.99,0.00021917,2]
[362013162,1747936238910,-430.0,0.00021917,2]
[362013164,1747936238919,-1653.09,0.00021917,2]
[362013166,1747936238930,-3778.78,0.00021917,2]
[362013168,1747936238940,-1682.32,0.00021917,2]
[362013170,1747936238950,-430.0,0.00021917,2]
[362013172,1747936238959,-1084.19,0.00021917,2]
[362013174,1747936238969,-956.86,0.00021917,2]
[362013176,1747936238979,-452.41372131,0.00021917,2]
[362013178,1747936238988,-430.0,0.00021917,2]
[362013180,1747936238998,-2915.71,0.00021917,2]
[362013182,1747936239008,-430.0,0.00021917,2]
[362013184,1747936239017,-1471.22,0.00021917,2]
[362013186,1747936239028,-689.31,0.00021917,2]
[362013188,1747936239037,-430.0,0.00021917,2]
[362013190,1747936239047,-450.0,0.00021917,2]
[362013193,1747936239058,-430.0,0.00021917,2]
[362013195,1747936239067,-430.0,0.00021917,2]
[362013197,1747936239077,-430.0,0.00021917,2]
[362013199,1747936239088,-195.163866,0.00021918,7]
[362013200,1747936239098,-195.163866,0.00021918,7]
[362013203,1747936239108,-500.0,0.00021918,2]
[362013205,1747936239119,-500.0,0.00021918,2]
[362013207,1747936239128,-500.0,0.00021918,2]
[362013209,1747936239138,-550.0,0.00021918,2]
[362013211,1747936239148,-500.0,0.00021918,2]
[362013213,1747936239157,-500.0,0.00021918,2]
[362013215,1747936239167,-500.0,0.00021918,2]
[362013216,1747936239176,-500.0,0.00021918,2]
[362013219,1747936239187,-500.0,0.00021918,2]
[362013220,1747936239196,-500.0,0.00021918,2]
[362013222,1747936239206,-286.77681762,0.00021918,2]
[362013225,1747936239216,-500.0,0.00021918,2]
[362013226,1747936239226,-500.0,0.00021918,2]
[362013228,1747936239236,-500.0,0.00021918,2]
[362013230,1747936239247,-500.0,0.00021918,2]
[362013232,1747936239257,-450.0,0.00021918,2]
[362013234,1747936239266,-300.0,0.00021918,2]
[362013236,1747936239276,-2912.68374365,0.00021954,2]
[362013238,1747936239287,-19461.17126133,0.0002199,2]
[362013240,1747936239296,-1000.0,0.00022,22]
[362013242,1747936239305,-167.0,0.00022,2]
[362013244,1747936239315,-3365.05141073,0.00022003,6]
[362013246,1747936239324,-160.0,0.0002207,2]
[362013247,1747936239334,-160.0,0.0002207,2]
[362013248,1747936239343,-422.78357425,0.0002207,2]
[362013249,1747936239353,-160.0,0.0002207,2]
[362013250,1747936239362,-12645.25887003,0.0002207,2]
[362013251,1747936239373,-212.4501065,0.0002207,2]
[362013252,1747936239382,-894.64583333,0.0002207,2]
[362013253,1747936239392,-160.0,0.0002207,2]
[362013254,1747936239401,-160.0,0.0002207,2]
[362013255,1747936239410,-160.0,0.0002207,2]
[362013256,1747936239419,-160.0,0.0002207,2]
[362013257,1747936239429,-160.0,0.0002207,2]
[362013258,1747936239438,-151.0,0.00022085,7]
[362013259,1747936239447,-151.0,0.00022085,7]
[362013260,1747936239457,-211.676544,0.00022085,7]
[362013261,1747936239466,-2912.68374365,0.00022091,2]
[362013262,1747936239476,-1015.462802,0.000221,7]
[362013263,1747936239485,-1015.462802,0.000221,7]
[362013264,1747936239495,-153.0,0.0002211,2]
[362013265,1747936239504,-153.0,0.0002211,2]
[362013266,1747936239514,-153.0,0.0002211,2]
[362013267,1747936239523,-3365.05141073,0.00022141,6]
[362013268,1747936239533,-500.0,0.00022173,2]
[362013269,1747936239542,-500.0,0.00022173,2]
[362013270,1747936239555,-500.0,0.00022173,2]
[362013271,1747936239565,-500.0,0.00022173,2]
[362013272,1747936239574,-500.0,0.00022173,2]
[362013273,1747936239583,-500.0,0.00022173,2]
[362013274,1747936239593,-500.0,0.00022173,2]
[362013275,1747936239603,-500.0,0.00022173,2]
[362013276,1747936239613,-500.0,0.00022173,2]
[362013277,1747936239624,-534.44048896,0.00022173,2]
[362013278,1747936239634,-500.0,0.00022173,2]
[362013279,1747936239644,-500.0,0.00022173,2]
[362013280,1747936239653,-500.0,0.00022173,2]
[362013281,1747936239662,-500.0,0.00022173,2]
[362013282,1747936239672,-500.0,0.00022173,2]
[362013284,1747936239682,-500.0,0.00022173,2]
[362013286,1747936239691,-500.0,0.00022173,2]
[362013288,1747936239701,-500.0,0.00022173,2]
[362013290,1747936239711,-151.0,0.00022181,7]
[362013292,1747936239720,-151.0,0.00022181,7]
[362013294,1747936239730,-103808.5452643,0.00022189,2]
[362013318,1747936239943,-2508.23760735,0.00022189,2]
[362013320,1747936239957,-879.34758048,0.00022189,2]
[362013387,1747936240691,-804.11,0.00021917,2]
[362013388,1747936240701,-509.81,0.00021917,2]
[362013389,1747936240711,-450.0,0.00021917,2]
[362013390,1747936240721,-450.0,0.00021917,2]
[362013391,1747936240730,-450.0,0.00021917,2]
[362013392,1747936240740,-18420.91824174,0.00022189,2]
[362013733,1747936246547,-430.0,0.00021917,2]
[362013735,1747936246559,-450.0,0.00021917,2]
[362013737,1747936246569,-1226.61,0.00021917,2]
[362013739,1747936246580,-206.42513144,0.00021917,2]
[362013741,1747936246590,-450.0,0.00021917,2]
[362013743,1747936246599,-430.0,0.00021917,2]
[362013745,1747936246608,-576.35867665,0.00021917,2]
[362013747,1747936246618,-1226.0,0.00021917,2]
[362013749,1747936246627,-450.0,0.00021917,2]
[362013751,1747936246639,-430.0,0.00021917,2]
[362013753,1747936246649,-1019.9,0.00021917,2]
[362013755,1747936246659,-9628.6942786,0.00022189,2]
[362015399,1747936410624,-3000.0,0.00019,2]
[362015400,1747936410648,-3000.0,0.0001901,2]
[362015401,1747936410671,-3000.0,0.0001902,2]
[362015402,1747936410693,-3000.0,0.0001903,2]
[362015403,1747936410715,-2795.0,0.0001904,2]
[362015408,1747936746841,-192.0,0.0001885,2]
[362015409,1747936750629,5000.0,0.00015,30]
[362015410,1747936814861,-4808.0,0.0001885,2]
[362015411,1747936814883,-192.0,0.0001904,2]
[362015412,1747936820240,20000.0,0.00016,7]
[362015413,1747936879859,-5000.0,0.0001885,2]
[362015414,1747936948826,-4539.0,0.0001885,2]
[362015415,1747937001559,-461.0,0.0001885,2]
[362015416,1747937001583,-39.0,0.0001904,2]
[362015417,1747937019002,-1500.0,0.0001885,2]
[362015418,1747937026661,-746.8,0.0001885,2]
[362015419,1747937140078,-366.07788865,0.00016438,2]
[362015422,1747937146539,-83.92211035,0.00016438,2]
[362015440,1747937383088,210.873548,0.00013699,2]
[362015489,1747937432768,-429.90871478,0.00018662,2]
[362015491,1747937432781,-2046.95379135,0.00018662,2]
[362015493,1747937432791,-5308.75832952,0.000189,2]
[362015496,1747937432802,-31.075615,0.0001904,2]
[362015498,1747937432812,-604.845738,0.00019178,2]
[362015499,1747937432822,-300.0,0.00019678,2]
[362015502,1747937432832,-300.0,0.00019678,2]
[362015504,1747937432842,-430.0,0.00019679,2]
[362015506,1747937432852,-430.0,0.00019679,2]
[362015508,1747937432862,-430.0,0.00019679,2]
[362015510,1747937432872,-430.0,0.00019679,2]
[362015512,1747937432882,-447.56,0.00019679,2]
[362015513,1747937432892,-430.0,0.00019679,2]
[362015514,1747937432903,-450.0,0.00019679,2]
[362015515,1747937432913,-430.0,0.00019679,2]
[362015516,1747937432922,-430.0,0.00019679,2]
[362015517,1747937432932,-430.0,0.00019679,2]
[362015518,1747937432942,-430.0,0.00019679,2]
[362015519,1747937432955,-400.0,0.00019679,2]
[362015520,1747937432966,-430.0,0.00019679,2]
[362015521,1747937432976,-400.0,0.00019679,2]
[362015522,1747937432986,-430.0,0.00019679,2]
[362015523,1747937432998,-430.0,0.00019679,2]
[362015524,1747937433008,-430.0,0.00019679,2]
[362015525,1747937433216,-430.0,0.00019679,2]
[362015526,1747937433227,-400.27680776,0.00019679,2]
[362015527,1747937433237,-430.0,0.00019679,2]
[362015528,1747937433248,-430.0,0.00019679,2]
[362015529,1747937433259,-430.0,0.00019679,2]
[362015530,1747937433269,-430.0,0.00019679,2]
[362015531,1747937433279,-430.0,0.00019952,2]
[362015532,1747937433289,-401.68929924,0.00019952,2]
[362015533,1747937433299,-450.0,0.00019952,2]
[362015534,1747937433309,-450.0,0.00019952,2]
[362015535,1747937433319,-216.07266042,0.00019952,2]
[362015536,1747937433328,-430.0,0.00019952,2]
[362015537,1747937433339,-450.0,0.00019952,2]
[362015538,1747937433349,-793.08,0.00019952,2]
[362015539,1747937433359,-870.97,0.00019952,2]
[362015540,1747937433368,-754.99,0.00019952,2]
[362015541,1747937433379,-450.0,0.00019952,2]
[362015542,1747937433389,-2636.85,0.00019952,2]
[362015543,1747937433398,-450.0,0.00019952,2]
[362015544,1747937433408,-450.0,0.00019952,2]
[362015545,1747937433418,-4193.45,0.00019952,2]
[362015546,1747937433427,-430.0,0.00019952,2]
[362015547,1747937433437,-450.0,0.00019952,2]
[362015548,1747937433446,-430.0,0.00019952,2]
[362015549,1747937433457,-450.0,0.00019952,2]
[362015550,1747937433466,-635.81,0.00019952,2]
[362015551,1747937433476,-450.0,0.00019952,2]
[362015552,1747937433486,-8839.91,0.00019952,2]
[362015553,1747937433496,-450.0,0.00019952,2]
[362015554,1747937433506,-430.0,0.00019952,2]
[362015555,1747937433516,-185.44023931,0.00019953,2]
[362015556,1747937433530,-314.55976069,0.00019953,2]
[362015557,1747937433541,-470.0,0.00019953,2]
[362015558,1747937433551,-430.0,0.00019953,2]
[362015559,1747937433561,-430.0,0.00019953,2]
[362015560,1747937433571,-470.0,0.00019953,2]
[362015561,1747937433581,-447.56,0.00019953,2]
[362015562,1747937433591,-430.0,0.00019953,2]
[362015563,1747937433601,-430.0,0.00019953,2]
[362015564,1747937433610,-430.0,0.00019953,2]
[362015565,1747937433620,-470.0,0.00019953,2]
[362015566,1747937433630,-470.0,0.00019953,2]
[362015567,1747937433640,-430.0,0.00019953,2]
[362015568,1747937433650,-470.0,0.00019953,2]
[362015569,1747937433660,-470.0,0.00019953,2]
[362015570,1747937433669,-430.0,0.00019953,2]
[362015571,1747937433679,-470.0,0.00019953,2]
[362015572,1747937433688,-470.0,0.00019953,2]
[362015573,1747937433697,-470.0,0.00019953,2]
[362015574,1747937433707,-420.0,0.00019953,2]
[362015575,1747937433716,-470.0,0.00019953,2]
[362015576,1747937433727,-1494.0245981,0.00020156,2]
[362015577,1747937433737,-210.873548,0.00020187,2]
[362015578,1747937433747,-470.0,0.00020226,2]
[362015579,1747937433756,-430.0,0.00020226,2]
[362015580,1747937433766,-793.08,0.00020226,2]
[362015581,1747937433775,-870.97,0.00020226,2]
[362015582,1747937433786,-754.99,0.00020226,2]
[362015583,1747937433795,-2636.85,0.00020226,2]
[362015584,1747937433805,-166.52927153,0.00020226,2]
[362015585,1747937433830,-4026.92072847,0.00020226,2]
[362015586,1747937433839,-430.0,0.00020226,2]
[362015587,1747937433848,-470.0,0.00020226,2]
[362015588,1747937433857,-635.81,0.00020226,2]
[362015589,1747937433867,-8839.91,0.00020226,2]
[362015590,1747937433877,-470.0,0.00020226,2]
[362015591,1747937433887,-500.0,0.00020227,2]
[362015592,1747937433896,-365.31,0.00020227,2]
[362015593,1747937433905,-430.0,0.00020227,2]
[362015594,1747937433914,-447.56,0.00020227,2]
[362015595,1747937433923,-470.0,0.00020227,2]
[362015596,1747937433933,-430.0,0.00020227,2]
[362015597,1747937433942,-430.0,0.00020227,2]
[362015598,1747937433953,-430.0,0.00020227,2]
[362015599,1747937433962,-430.0,0.00020227,2]
[362015600,1747937433974,-430.0,0.00020399,2]
[362015601,1747937433985,-2663.27909533,0.000204,3]
[362015602,1747937433994,-2663.27909513,0.000204,3]
[362015603,1747937434004,-2663.27909513,0.000204,3]
[362015604,1747937434013,-2663.27909513,0.00020417,3]
[362015605,1747937434023,-152.0,0.0002042,2]
[362015606,1747937434032,-2200.0,0.00020447,2]
[362015607,1747937434041,-317.0523094,0.00020489,2]
[362015608,1747937434054,-500.0,0.000205,2]
[362015609,1747937434064,-500.0,0.000205,2]
[362015610,1747937434075,-500.0,0.000205,2]
[362015611,1747937434085,-500.0,0.000205,2]
[362015612,1747937434094,-432.18530435,0.000205,2]
[362015613,1747937434104,-500.0,0.000205,2]
[362015614,1747937434114,-456.05680143,0.000205,2]
[362015615,1747937434124,-500.0,0.000205,2]
[362015616,1747937434134,-500.0,0.000205,2]
[362015617,1747937434144,-500.0,0.000205,2]
[362015618,1747937434154,-157.32626057,0.000205,2]
[362015619,1747937434163,-334.01,0.000205,2]
[362015620,1747937434174,-377.41063858,0.000205,2]
[362015621,1747937434184,-793.08,0.000205,2]
[362015622,1747937434195,-870.97,0.000205,2]
[362015623,1747937434205,-754.99,0.000205,2]
[362015624,1747937434215,-2636.85,0.000205,2]
[362015625,1747937434226,-4193.45,0.000205,2]
[362015626,1747937434235,-430.0,0.000205,2]
[362015627,1747937434245,-635.81,0.000205,2]
[362015628,1747937434255,-8839.91,0.000205,2]
[362015629,1747937434264,-430.0,0.00020501,2]
[362015630,1747937434274,-447.56,0.00020501,2]
[362015631,1747937434284,-430.0,0.00020501,2]
[362015632,1747937434294,-490.0,0.00020501,2]
[362015633,1747937434303,-430.0,0.00020501,2]
[362015634,1747937434312,-430.0,0.00020501,2]
[362015635,1747937434322,-430.0,0.00020589,2]
[362015636,1747937434332,-2717.99,0.00020589,2]
[362015637,1747937434342,-430.0,0.00020589,2]
[362015638,1747937434351,-1248.89,0.00020589,2]
[362015639,1747937434362,-1231.12,0.00020589,2]
[362015640,1747937434372,-430.0,0.00020589,2]
[362015641,1747937434382,-450.0,0.00020589,2]
[362015642,1747937434392,-430.0,0.00020589,2]
[362015643,1747937434401,-3114.31,0.00020589,2]
[362015644,1747937434412,-6202.28,0.00020589,2]
[362015645,1747937434422,-869.75,0.00020589,2]
[362015646,1747937434431,-430.0,0.00020589,2]
[362015647,1747937434442,-450.0,0.00020589,2]
[362015648,1747937434452,-430.0,0.00020589,2]
[362015649,1747937434461,-2313.92,0.00020589,2]
[362015650,1747937434471,-450.0,0.00020589,2]
[362015651,1747937434481,-723.28,0.00020589,2]
[362015652,1747937434491,-1963.66,0.00020589,2]
[362015653,1747937434500,-430.0,0.00020589,2]
[362015654,1747937434510,-430.0,0.00020589,2]
[362015655,1747937434520,-430.0,0.00020589,2]
[362015656,1747937434530,-450.0,0.00020589,2]
[362015657,1747937434540,-430.0,0.00020589,2]
[362015658,1747937434550,-430.0,0.00020589,2]
[362015659,1747937434561,-430.0,0.00020589,2]
[362015660,1747937434571,-430.0,0.00020589,2]
[362015661,1747937434582,-927.6,0.00020589,2]
[362015662,1747937434591,-1019.25,0.00020589,2]
[362015663,1747937434602,-1494.4,0.00020589,2]
[362015664,1747937434612,-450.0,0.00020589,2]
[362015665,1747937434623,-430.0,0.00020589,2]
[362015666,1747937434633,-450.0,0.00020589,2]
[362015667,1747937434644,-450.0,0.00020589,2]
[362015668,1747937434653,-450.0,0.00020589,2]
[362015669,1747937434663,-430.0,0.00020589,2]
[362015670,1747937434673,-430.0,0.00020589,2]
[362015671,1747937434683,-502.5364017,0.00020589,2]
[362015672,1747937434693,-430.0,0.00020589,2]
[362015673,1747937434702,-430.0,0.00020589,2]
[362015674,1747937434712,-450.67098523,0.00020589,2]
[362015675,1747937434723,-450.0,0.00020589,2]
[362015676,1747937434733,-450.0,0.00020589,2]
[362015677,1747937434743,-458.23780098,0.00020589,2]
[362015678,1747937434753,-1033.98,0.00020589,2]
[362015679,1747937434763,-551.4,0.00020589,2]
[362015680,1747937434773,-430.0,0.00020589,2]
[362015681,1747937434783,-430.0,0.00020589,2]
[362015682,1747937434792,-1443.52,0.00020589,2]
[362015683,1747937434802,-450.0,0.00020589,2]
[362015684,1747937434811,-488.57,0.00020589,2]
[362015685,1747937434821,-430.0,0.00020589,2]
[362015686,1747937434832,-254.63,0.00020589,2]
[362015687,1747937434843,-2663.27909513,0.0002059,3]
[362015688,1747937434853,-424.09812731,0.00020673,2]
[362015689,1747937434863,-317.05230939,0.00020694,2]
[362015690,1747937434874,-2663.27909513,0.00020762,3]
[362015691,1747937434885,-793.08,0.00020774,2]
[362015692,1747937434894,-870.97,0.00020774,2]
[362015693,1747937434904,-754.99,0.00020774,2]
[362015694,1747937434914,-2636.85,0.00020774,2]
[362015695,1747937434924,-4193.45,0.00020774,2]
[362015696,1747937434933,-430.0,0.00020774,2]
[362015697,1747937434944,-635.81,0.00020774,2]
[362015698,1747937434957,-8839.91,0.00020774,2]
[362015699,1747937434967,-430.0,0.00020775,2]
[362015700,1747937434976,-447.56,0.00020775,2]
[362015701,1747937434986,-430.0,0.00020775,2]
[362015702,1747937434996,-430.0,0.00020775,2]
[362015703,1747937435006,-430.0,0.00020775,2]
[362015704,1747937435016,-470.0,0.00020863,2]
[362015705,1747937435026,-2717.99,0.00020863,2]
[362015706,1747937435037,-470.0,0.00020863,2]
[362015707,1747937435047,-1248.89,0.00020863,2]
[362015708,1747937435057,-1231.12,0.00020863,2]
[362015709,1747937435066,-470.0,0.00020863,2]
[362015710,1747937435076,-430.0,0.00020863,2]
[362015711,1747937435086,-3114.31,0.00020863,2]
[362015712,1747937435095,-6202.28,0.00020863,2]
[362015713,1747937435105,-869.75,0.00020863,2]
[362015714,1747937435115,-430.0,0.00020863,2]
[362015715,1747937435125,-430.0,0.00020863,2]
[362015716,1747937435135,-2313.92,0.00020863,2]
[362015717,1747937435145,-723.28,0.00020863,2]
[362015718,1747937435156,-1963.66,0.00020863,2]
[362015719,1747937435165,-470.0,0.00020863,2]
[362015720,1747937435175,-470.0,0.00020863,2]
[362015721,1747937435186,-470.0,0.00020863,2]
[362015722,1747937435195,-470.0,0.00020863,2]
[362015723,1747937435205,-470.0,0.00020863,2]
[362015724,1747937435216,-430.0,0.00020863,2]
[362015725,1747937435226,-430.0,0.00020863,2]
[362015726,1747937435237,-927.6,0.00020863,2]
[362015727,1747937435246,-1019.25,0.00020863,2]
[362015728,1747937435255,-1494.4,0.00020863,2]
[362015729,1747937435265,-430.0,0.00020863,2]
[362015730,1747937435275,-430.0,0.00020863,2]
[362015731,1747937435284,-430.0,0.00020863,2]
[362015732,1747937435293,-450.0,0.00020863,2]
[362015733,1747937435303,-554.26,0.00020863,2]
[362015734,1747937435312,-1033.98,0.00020863,2]
[362015735,1747937435322,-551.4,0.00020863,2]
[362015736,1747937435332,-430.0,0.00020863,2]
[362015737,1747937435342,-380.0,0.00020863,2]
[362015738,1747937435352,-1443.52,0.00020863,2]
[362015739,1747937435361,-488.57,0.00020863,2]
[362015740,1747937435371,-430.0,0.00020863,2]
[362015741,1747937435381,-317.05230939,0.00020898,2]
[362015742,1747937435391,-2663.27909513,0.00020934,4]
[362015743,1747937435400,-516.92021092,0.00020973,2]
[362015744,1747937435410,-500.0,0.00020973,2]
[362015745,1747937435419,-500.0,0.00020973,2]
[362015746,1747937435429,-500.0,0.00020973,2]
[362015747,1747937435439,-500.0,0.00020973,2]
[362015748,1747937435448,-500.0,0.00020973,2]
[362015749,1747937435457,-500.0,0.00020973,2]
[362015750,1747937435467,-503.02853215,0.00020973,2]
[362015751,1747937435476,-515.28709706,0.00020973,2]